Department Of Health,Entity,Date of payment,Expense Type,Supplier Name,Amount,Month
Department Of Health,United Lincolnshire Hospitals NHS Trust,01/02/2022,Msse Consumables,Inhealth Ltd,"35,520.00",Feb-22
Department Of Health,United Lincolnshire Hospitals NHS Trust,01/02/2022,Clinical Service Contract,Medica Group,"32,330.00",Feb-22
Department Of Health,United Lincolnshire Hospitals NHS Trust,01/02/2022,Clinical Service Contract,Medica Group,"36,138.00",Feb-22
Department Of Health,United Lincolnshire Hospitals NHS Trust,01/02/2022,Agency Hca Unregistered,Crystal Facilities Management Ltd,"59,529.60",Feb-22
Department Of Health,United Lincolnshire Hospitals NHS Trust,01/02/2022,Gp Specialist Trainee,St Helens & Knowsley Teaching Hospitals,"250,000.00",Feb-22
Department Of Health,United Lincolnshire Hospitals NHS Trust,01/02/2022,Excluded Devices Expenditure,The Snoring Disorders Centre Ltd,"82,452.48",Feb-22
Department Of Health,United Lincolnshire Hospitals NHS Trust,01/02/2022,Excluded Devices Expenditure,The Snoring Disorders Centre Ltd,"48,658.80",Feb-22
Department Of Health,United Lincolnshire Hospitals NHS Trust,01/02/2022,Fuel - Steam,Industrial Energy Services Ltd,"91,341.74",Feb-22
Department Of Health,United Lincolnshire Hospitals NHS Trust,01/02/2022,Equipment Other - Auc Pur,Sccl Ltd - Nhs Supply Chain (Capital),"99,162.46",Feb-22
Department Of Health,United Lincolnshire Hospitals NHS Trust,09/02/2022,Msse Consumables,Probo Medical Ltd,"76,860.00",Feb-22
Department Of Health,United Lincolnshire Hospitals NHS Trust,09/02/2022,Engin & Maint Equip And Mats,Fujifilm Uk Ltd,"171,659.45",Feb-22
Department Of Health,United Lincolnshire Hospitals NHS Trust,09/02/2022,Laundry Contract,Berendsen Healthcare Ltd,"68,659.97",Feb-22
Department Of Health,United Lincolnshire Hospitals NHS Trust,09/02/2022,Clinical Service Contract,Txm Teleconsult Ltd T/A Teleconsult Uk,"40,951.00",Feb-22
Department Of Health,United Lincolnshire Hospitals NHS Trust,09/02/2022,Agency Hca Unregistered,Crystal Facilities Management Ltd,"74,412.00",Feb-22
Department Of Health,United Lincolnshire Hospitals NHS Trust,09/02/2022,Sw Support,Ge Medical Systems Ltd,"98,954.26",Feb-22
Department Of Health,United Lincolnshire Hospitals NHS Trust,09/02/2022,External Contracts,Checkit Europe Limited,"36,552.00",Feb-22
Department Of Health,United Lincolnshire Hospitals NHS Trust,09/02/2022,Radiology Services,Sccl - Nhs Supply Chain (Maintenance),"41,606.18",Feb-22
Department Of Health,United Lincolnshire Hospitals NHS Trust,09/02/2022,Room Hire (Non-Ifrs 16),Progress Housing Association Ltd,"139,697.54",Feb-22
Department Of Health,United Lincolnshire Hospitals NHS Trust,09/02/2022,Room Hire (Non-Ifrs 16),Progress Housing Association Ltd,"35,852.18",Feb-22
Department Of Health,United Lincolnshire Hospitals NHS Trust,09/02/2022,Occupancy Guarantee,Progress Housing Association Ltd,"80,837.29",Feb-22
Department Of Health,United Lincolnshire Hospitals NHS Trust,09/02/2022,Equipment Other - Auc Pur,Bk Medical Uk Ltd,"106,838.40",Feb-22
Department Of Health,United Lincolnshire Hospitals NHS Trust,09/02/2022,Computer Hardware - Auc Pur,Dell Corporation Limited,"31,414.37",Feb-22
Department Of Health,United Lincolnshire Hospitals NHS Trust,09/02/2022,Engineering Services - Auc Pur,East Kirkby Engineering Co Ltd,"30,555.52",Feb-22
Department Of Health,United Lincolnshire Hospitals NHS Trust,09/02/2022,Building Works - Auc Pur,Gelder Ltd,"84,161.57",Feb-22
Department Of Health,United Lincolnshire Hospitals NHS Trust,09/02/2022,Computer Softw - Auc Pur,Phoenix Software Ltd,"532,815.29",Feb-22
Department Of Health,United Lincolnshire Hospitals NHS Trust,09/02/2022,Ascribe Control: Lincoln,Roche Products Ltd,"39,534.62",Feb-22
Department Of Health,United Lincolnshire Hospitals NHS Trust,15/02/2022,Blood Products,Nhs Blood And Transplant,"61,378.04",Feb-22
Department Of Health,United Lincolnshire Hospitals NHS Trust,15/02/2022,Blood Products,Nhs Blood And Transplant,"77,632.07",Feb-22
Department Of Health,United Lincolnshire Hospitals NHS Trust,15/02/2022,Blood Products,Nhs Blood And Transplant,"61,378.04",Feb-22
Department Of Health,United Lincolnshire Hospitals NHS Trust,15/02/2022,Blood Products,Nhs Blood And Transplant,"77,632.07",Feb-22
Department Of Health,United Lincolnshire Hospitals NHS Trust,15/02/2022,Blood Products,Northern Lincs&Goole Hospital Nhs Ft,"863,644.00",Feb-22
Department Of Health,United Lincolnshire Hospitals NHS Trust,15/02/2022,Outsource Service From Non Nhs,The Snoring Disorders Centre Ltd,"50,167.50",Feb-22
Department Of Health,United Lincolnshire Hospitals NHS Trust,15/02/2022,Outsource Service From Non Nhs,The Snoring Disorders Centre Ltd,"32,763.90",Feb-22
Department Of Health,United Lincolnshire Hospitals NHS Trust,15/02/2022,Outsource Service From Non Nhs,Synergy Health (Uk) Ltd,"342,679.10",Feb-22
Department Of Health,United Lincolnshire Hospitals NHS Trust,15/02/2022,Outsource Service From Non Nhs,Synergy Health (Uk) Ltd,"342,679.10",Feb-22
Department Of Health,United Lincolnshire Hospitals NHS Trust,15/02/2022,Outsource Service From Non Nhs,Synergy Health (Uk) Ltd,"342,679.10",Feb-22
Department Of Health,United Lincolnshire Hospitals NHS Trust,15/02/2022,Financial Ledger System,Capita Secure Information Solutions Ltd,"55,546.80",Feb-22
Department Of Health,United Lincolnshire Hospitals NHS Trust,15/02/2022,Recruitment Agency Fees,Sanctuary Personnel Ltd,"57,120.00",Feb-22
Department Of Health,United Lincolnshire Hospitals NHS Trust,15/02/2022,External Contracts,Mpd Fm Limited,"31,115.30",Feb-22
Department Of Health,United Lincolnshire Hospitals NHS Trust,15/02/2022,Clinical Service Contract,Medica Group,"34,151.00",Feb-22
Department Of Health,United Lincolnshire Hospitals NHS Trust,15/02/2022,Clinical Service Contract,Medica Group,"44,043.00",Feb-22
Department Of Health,United Lincolnshire Hospitals NHS Trust,15/02/2022,Water & Sewage,Anglian Water Business National Ltd,"25,042.17",Feb-22
Department Of Health,United Lincolnshire Hospitals NHS Trust,15/02/2022,Nhs England Income Non Block,Midlands Private Neurophysiology Ltd,"44,200.00",Feb-22
Department Of Health,United Lincolnshire Hospitals NHS Trust,15/02/2022,Agency Nursing Registered,Group 24 Ltd T/A Nursing 24,"292,304.70",Feb-22
Department Of Health,United Lincolnshire Hospitals NHS Trust,15/02/2022,Agency Nursing Registered,Group 24 Ltd T/A Nursing 24,"229,418.40",Feb-22
Department Of Health,United Lincolnshire Hospitals NHS Trust,15/02/2022,Agency Nursing Registered,Group 24 Ltd T/A Nursing 24,"167,006.70",Feb-22
Department Of Health,United Lincolnshire Hospitals NHS Trust,15/02/2022,Agency Nursing Registered,Group 24 Ltd T/A Nursing 24,"162,152.40",Feb-22
Department Of Health,United Lincolnshire Hospitals NHS Trust,15/02/2022,Agency Nursing Registered,Group 24 Ltd T/A Nursing 24,"214,750.50",Feb-22
Department Of Health,United Lincolnshire Hospitals NHS Trust,15/02/2022,Agency Nursing Registered,Group 24 Ltd T/A Nursing 24,"213,353.70",Feb-22
Department Of Health,United Lincolnshire Hospitals NHS Trust,15/02/2022,Agency Nursing Registered,Nutrix Personnel Ltd,"30,862.80",Feb-22
Department Of Health,United Lincolnshire Hospitals NHS Trust,15/02/2022,Laboratory External Tests,Northern Lincs&Goole Hospital Nhs Ft,"27,805.52",Feb-22
Department Of Health,United Lincolnshire Hospitals NHS Trust,15/02/2022,Laboratory External Tests,Northern Lincs&Goole Hospital Nhs Ft,"74,119.00",Feb-22
Department Of Health,United Lincolnshire Hospitals NHS Trust,15/02/2022,Laboratory External Tests,Northern Lincs&Goole Hospital Nhs Ft,"31,391.93",Feb-22
Department Of Health,United Lincolnshire Hospitals NHS Trust,15/02/2022,Excluded Devices Expenditure,The Snoring Disorders Centre Ltd,"84,265.60",Feb-22
Department Of Health,United Lincolnshire Hospitals NHS Trust,15/02/2022,Excluded Devices Expenditure,The Snoring Disorders Centre Ltd,"27,582.75",Feb-22
Department Of Health,United Lincolnshire Hospitals NHS Trust,15/02/2022,Recruitment Agency Fees,Health Education England,"49,972.29",Feb-22
Department Of Health,United Lincolnshire Hospitals NHS Trust,15/02/2022,Clinical Service Contract,Lincolnshire Community Health Services,"47,187.83",Feb-22
Department Of Health,United Lincolnshire Hospitals NHS Trust,15/02/2022,Ascribe Control: Boston,Aah Hospital Service,"44,184.19",Feb-22
Department Of Health,United Lincolnshire Hospitals NHS Trust,15/02/2022,Ascribe Control: Boston,Aah Hospital Service,"35,899.66",Feb-22
Department Of Health,United Lincolnshire Hospitals NHS Trust,15/02/2022,Ascribe Control: Boston,Alliance Healthcare (Distribution) Ltd,"32,766.98",Feb-22
Department Of Health,United Lincolnshire Hospitals NHS Trust,15/02/2022,Ascribe Control: Lincoln,Aventis Pharma Ltd T/A Sanofi Pasteur,"34,718.42",Feb-22
Department Of Health,United Lincolnshire Hospitals NHS Trust,15/02/2022,Ascribe Control: Lincoln,Bath Asu,"39,945.17",Feb-22
Department Of Health,United Lincolnshire Hospitals NHS Trust,15/02/2022,Ascribe Control: Lincoln,Biotest (Uk) Ltd,"38,500.00",Feb-22
Department Of Health,United Lincolnshire Hospitals NHS Trust,15/02/2022,Computer Hardware - Auc Pur,Dell Corporation Limited,"47,640.00",Feb-22
Department Of Health,United Lincolnshire Hospitals NHS Trust,15/02/2022,Building Works - Auc Pur,Gelder Ltd,"41,702.39",Feb-22
Department Of Health,United Lincolnshire Hospitals NHS Trust,15/02/2022,Building Works - Auc Pur,Gelder Ltd,"50,183.46",Feb-22
Department Of Health,United Lincolnshire Hospitals NHS Trust,15/02/2022,Appentice Levy - Trust,Hm Revenue & Customs,"133,880.00",Feb-22
Department Of Health,United Lincolnshire Hospitals NHS Trust,15/02/2022,National Insurance - Ees,Hm Revenue & Customs,"1,853,557.85",Feb-22
Department Of Health,United Lincolnshire Hospitals NHS Trust,15/02/2022,National Insurance - Ers,Hm Revenue & Customs,"2,799,069.63",Feb-22
Department Of Health,United Lincolnshire Hospitals NHS Trust,15/02/2022,Paye - Trust,Hm Revenue & Customs,"4,065,238.17",Feb-22
Department Of Health,United Lincolnshire Hospitals NHS Trust,15/02/2022,Student Loan - Trust,Hm Revenue & Customs,"78,641.00",Feb-22
Department Of Health,United Lincolnshire Hospitals NHS Trust,15/02/2022,National Ins Holt Drs- Ees,Hm Revenue & Customs,"69,377.08",Feb-22
Department Of Health,United Lincolnshire Hospitals NHS Trust,15/02/2022,National Ins Holt Drs- Ers,Hm Revenue & Customs,"220,891.76",Feb-22
Department Of Health,United Lincolnshire Hospitals NHS Trust,15/02/2022,Paye - Holt,Hm Revenue & Customs,"519,496.77",Feb-22
Department Of Health,United Lincolnshire Hospitals NHS Trust,15/02/2022,Building Works - Auc Pur,John Graham Construction Limited,"60,049.80",Feb-22
Department Of Health,United Lincolnshire Hospitals NHS Trust,15/02/2022,Supply Chain Control<1yr,Sccl - Nhs Supply Chain (Product Sales),"416,748.49",Feb-22
Department Of Health,United Lincolnshire Hospitals NHS Trust,15/02/2022,Supply Chain Control<1yr,Sccl - Nhs Supply Chain (Product Sales),"229,128.10",Feb-22
Department Of Health,United Lincolnshire Hospitals NHS Trust,15/02/2022,Supply Chain Control<1yr,Sccl - Nhs Supply Chain (Product Sales),"309,221.05",Feb-22
Department Of Health,United Lincolnshire Hospitals NHS Trust,15/02/2022,Supply Chain Control<1yr,Sccl - Nhs Supply Chain (Product Sales),"364,740.30",Feb-22
Department Of Health,United Lincolnshire Hospitals NHS Trust,15/02/2022,Supply Chain Control<1yr,Sccl - Nhs Supply Chain (Product Sales),"409,456.70",Feb-22
Department Of Health,United Lincolnshire Hospitals NHS Trust,15/02/2022,Supply Chain Control<1yr,Sccl - Nhs Supply Chain (Product Sales),"467,991.43",Feb-22
Department Of Health,United Lincolnshire Hospitals NHS Trust,15/02/2022,Computer Hardware - Auc Pur,Softcat Ltd,"87,368.40",Feb-22
Department Of Health,United Lincolnshire Hospitals NHS Trust,15/02/2022,Consultants Fees - Auc Pur,Turner & Townsend Project Management Ltd,"82,655.20",Feb-22
Department Of Health,United Lincolnshire Hospitals NHS Trust,15/02/2022,Consultants Fees - Auc Pur,Turner & Townsend Project Management Ltd,"34,535.00",Feb-22
Department Of Health,United Lincolnshire Hospitals NHS Trust,15/02/2022,Consultants Fees - Auc Pur,Turner & Townsend Project Management Ltd,"34,535.00",Feb-22
Department Of Health,United Lincolnshire Hospitals NHS Trust,15/02/2022,Consultants Fees - Auc Pur,Turner & Townsend Project Management Ltd,"34,535.00",Feb-22
Department Of Health,United Lincolnshire Hospitals NHS Trust,15/02/2022,Consultants Fees - Auc Pur,Turner & Townsend Project Management Ltd,"34,535.00",Feb-22
Department Of Health,United Lincolnshire Hospitals NHS Trust,15/02/2022,Consultants Fees - Auc Pur,Turner & Townsend Project Management Ltd,"34,534.99",Feb-22
Department Of Health,United Lincolnshire Hospitals NHS Trust,15/02/2022,Engineering Services - Auc Pur,Veolia Es Resource Efficiency Ltd,"117,735.26",Feb-22
Department Of Health,United Lincolnshire Hospitals NHS Trust,21/02/2022,Electricity,Edf Energy 1 Limited,"47,897.09",Feb-22
Department Of Health,United Lincolnshire Hospitals NHS Trust,21/02/2022,Cnst Contributions,Nhs Resolution,"1,647,614.60",Feb-22
Department Of Health,United Lincolnshire Hospitals NHS Trust,21/02/2022,Cnst Contributions,Nhs Resolution,"442,282.13",Feb-22
Department Of Health,United Lincolnshire Hospitals NHS Trust,21/02/2022,Cnst Contributions,Nhs Resolution,"259,893.27",Feb-22
Department Of Health,United Lincolnshire Hospitals NHS Trust,21/02/2022,Electricity,Edf Energy 1 Limited,"80,495.78",Feb-22
Department Of Health,United Lincolnshire Hospitals NHS Trust,22/02/2022,Bank Consultant,Agile Workforce Services Ltd,"32,506.52",Feb-22
Department Of Health,United Lincolnshire Hospitals NHS Trust,22/02/2022,Bank Consultant,Agile Workforce Services Ltd,"37,101.78",Feb-22
Department Of Health,United Lincolnshire Hospitals NHS Trust,22/02/2022,Payroll Services Contract,Lincolnshire Partnership Nhs Trust,"35,446.67",Feb-22
Department Of Health,United Lincolnshire Hospitals NHS Trust,22/02/2022,External Contracts,Lincolnshire Partnership Nhs Trust,"35,446.67",Feb-22
Department Of Health,United Lincolnshire Hospitals NHS Trust,22/02/2022,Recruitment Agency Fees,Sanctuary Personnel Ltd,"53,040.00",Feb-22
Department Of Health,United Lincolnshire Hospitals NHS Trust,22/02/2022,Laundry Contract,Berendsen Healthcare Ltd,"67,526.35",Feb-22
Department Of Health,United Lincolnshire Hospitals NHS Trust,22/02/2022,Laundry Contract,Berendsen Healthcare Ltd,"67,120.81",Feb-22
Department Of Health,United Lincolnshire Hospitals NHS Trust,22/02/2022,Msse Consumables,Sccl - Nhs Supply Chain (Maintenance),"44,513.18",Feb-22
Department Of Health,United Lincolnshire Hospitals NHS Trust,22/02/2022,Purch Hcare From Nhs And Dhsc,North West Anglia Nhs Ft,"61,427.91",Feb-22
Department Of Health,United Lincolnshire Hospitals NHS Trust,22/02/2022,Fuel - Steam,Industrial Energy Services Ltd,"71,025.91",Feb-22
Department Of Health,United Lincolnshire Hospitals NHS Trust,22/02/2022,Course Fees,Oxford Brookes University,"33,348.00",Feb-22
Department Of Health,United Lincolnshire Hospitals NHS Trust,22/02/2022,Clinical Equipment Hire,Arjo Uk Limited,"136,629.24",Feb-22
Department Of Health,United Lincolnshire Hospitals NHS Trust,22/02/2022,Ascribe Control: Boston,Aah Hospital Service,"37,016.42",Feb-22
Department Of Health,United Lincolnshire Hospitals NHS Trust,22/02/2022,Ascribe Control: Lincoln,Alloga Uk Ltd,"30,330.30",Feb-22
Department Of Health,United Lincolnshire Hospitals NHS Trust,22/02/2022,Building Works - Auc Pur,Darwin Group Limited,"164,564.15",Feb-22
Department Of Health,United Lincolnshire Hospitals NHS Trust,22/02/2022,Computer Hardware - Auc Pur,Dell Corporation Limited,"89,760.00",Feb-22
Department Of Health,United Lincolnshire Hospitals NHS Trust,22/02/2022,Computer Hardware - Auc Pur,Dell Corporation Limited,"81,480.00",Feb-22
Department Of Health,United Lincolnshire Hospitals NHS Trust,22/02/2022,Computer Hardware - Auc Pur,Dell Corporation Limited,"78,120.00",Feb-22
Department Of Health,United Lincolnshire Hospitals NHS Trust,22/02/2022,Computer Hardware - Auc Pur,Dell Corporation Limited,"78,120.00",Feb-22
Department Of Health,United Lincolnshire Hospitals NHS Trust,22/02/2022,Computer Hardware - Auc Pur,Dell Corporation Limited,"78,120.00",Feb-22
Department Of Health,United Lincolnshire Hospitals NHS Trust,22/02/2022,Computer Hardware - Auc Pur,Dell Corporation Limited,"78,120.00",Feb-22
Department Of Health,United Lincolnshire Hospitals NHS Trust,22/02/2022,Engineering Services - Auc Pur,East Kirkby Engineering Co Ltd,"122,021.24",Feb-22
Department Of Health,United Lincolnshire Hospitals NHS Trust,22/02/2022,Building Works - Auc Pur,Gelder Ltd,"68,487.83",Feb-22
Department Of Health,United Lincolnshire Hospitals NHS Trust,22/02/2022,Equipment Medical - Auc Pur,Hill Rom Limited,"101,412.72",Feb-22
Department Of Health,United Lincolnshire Hospitals NHS Trust,22/02/2022,Equipment Other - Auc Pur,John Bradshaw Ltd,"31,418.83",Feb-22
Department Of Health,United Lincolnshire Hospitals NHS Trust,22/02/2022,Subscription Fees,Open Medical Ltd,"66,600.00",Feb-22
Department Of Health,United Lincolnshire Hospitals NHS Trust,23/02/2022,Provision Early Depart <1yr,Nhs Business Services Authority Pensions,"25,149.63",Feb-22
